bitfinex-derivatives/quotes_BTCF0:USTF0_20251119
["timestamp","ask_amount","ask_price","bid_price","bid_amount"]
[1763588019197,0.0478856,90476.0,90475.0,0.0001658]
[1763588019803,0.0478856,90476.0,90475.0,0.00236383]
[1763588020006,0.0037156,90476.0,90475.0,0.02542383]
[1763588020201,0.0037156,90476.0,90475.0,0.04676383]
[1763588022608,0.00675432,90476.0,90475.0,0.04676383]
[1763588023513,0.10843629,90486.0,90485.0,0.0444]
[1763588023813,0.10915189,90486.0,90485.0,0.15723853]
[1763588024510,0.04417,90480.0,90475.0,0.0001658]
[1763588024702,0.0007156,90476.0,90475.0,0.1552186]
[1763588024903,0.0007156,90476.0,90475.0,0.15741663]
[1763588025307,0.10843629,90486.0,90485.0,0.1550405]
[1763588025512,0.10915189,90486.0,90485.0,0.15723853]
[1763588026012,0.10915189,90486.0,90485.0,0.04659803]
[1763588026709,0.04516189,90486.0,90485.0,0.00219803]
[1763588026914,0.04516189,90486.0,90485.0,0.11283853]
[1763588027213,0.04417,90480.0,90479.0,0.3608]
[1763588027409,0.00099189,90486.0,90479.0,0.3608]
[1763588027410,0.00027629,90486.0,90485.0,0.1550405]
[1763588027607,0.3608,90506.0,90485.0,0.00219803]
[1763588027813,0.26016414,90500.0,90487.0,0.3608]
[1763588028015,0.0007156,90499.0,90494.0,0.1106294]
[1763588028211,0.0007156,90499.0,90498.0,0.04659803]
[1763588028512,0.3608,90506.0,90505.0,0.1550161]
[1763588028713,0.3615156,90506.0,90505.0,0.15721413]
[1763588029904,0.3608,90514.0,90513.0,0.15375875]
[1763588030212,0.0448856,90514.0,90513.0,0.13586433]
[1763588030410,0.0448856,90514.0,90513.0,0.00219803]
[1763588031110,0.0007156,90514.0,90513.0,0.04659803]
[1763588031312,0.0027156,90514.0,90513.0,0.04659803]
[1763588031618,0.0027156,90514.0,90513.0,0.15720433]
[1763588032608,0.0027156,90514.0,90513.0,0.04659803]
[1763588032804,0.0468856,90514.0,90513.0,0.00219803]
[1763588033909,0.0468856,90514.0,90505.0,0.4714152]
[1763588034109,0.0027156,90514.0,90506.0,0.00219803]
[1763588034313,0.0027156,90514.0,90511.0,0.1106087]
[1763588034513,0.0027156,90514.0,90513.0,0.04659803]
[1763588034906,0.0007156,90514.0,90513.0,0.04659803]
[1763588035116,0.0027156,90514.0,90513.0,0.04659803]
[1763588035320,0.0027156,90514.0,90513.0,0.40739803]
[1763588035516,0.002,90514.0,90513.0,0.40739803]
[1763588035822,0.10808,90519.0,90518.0,0.1550002]
[1763588036120,0.1087956,90519.0,90518.0,0.15719823]
[1763588036310,0.10983638,90519.0,90518.0,0.15719823]
[1763588036719,0.04592638,90519.0,90518.0,0.00219803]
[1763588036919,0.04592638,90519.0,90518.0,0.02525803]
[1763588037321,0.04811873,90519.0,90518.0,0.02525803]
[1763588037525,0.02548873,90519.0,90518.0,0.02525803]
[1763588037720,0.00027617,90526.0,90525.0,0.0444]
[1763588038026,0.04417,90550.0,90541.0,0.1105709]
[1763588038224,0.04417,90550.0,90525.0,0.36299803]
[1763588038225,0.04417,90543.0,90542.0,0.11276893]
[1763588038421,0.3608,90552.0,90550.0,0.1105599]
[1763588038622,0.04417,90551.0,90536.0,0.0001657]
[1763588038926,0.05753,90538.0,90537.0,0.00219803]
[1763588039317,0.04417,90538.0,90537.0,0.00219803]
[1763588039515,0.04417,90537.0,90536.0,0.0001657]
[1763588040227,0.46884,90542.0,90541.0,0.1336321]
[1763588040410,0.46884,90542.0,90541.0,0.13583013]
[1763588040815,0.30433414,90546.0,90545.0,0.1105673]
[1763588041010,0.30433414,90546.0,90545.0,0.00219803]
[1763588041011,0.04417,90546.0,90545.0,0.00219803]
[1763588041217,0.04517,90537.0,90536.0,0.0001657]
[1763588041422,0.04517,90537.0,90516.0,0.3608]
[1763588041423,0.04417,90517.0,90516.0,0.3608]
[1763588041627,0.04417,90517.0,90516.0,0.36299803]
[1763588041826,0.3608,90521.0,90516.0,0.00219803]
[1763588042126,0.3608,90521.0,90520.0,0.1537778]
[1763588042319,0.10804,90524.0,90523.0,0.04318]
[1763588042525,0.04502,90520.0,90514.0,0.3609657]
[1763588042722,0.02248,90517.0,90516.0,0.1106027]
[1763588042918,0.02248,90517.0,90516.0,0.11280073]
[1763588043226,0.02248,90517.0,90516.0,0.00219803]
[1763588043535,0.02248,90517.0,90514.0,0.0001657]
[1763588043536,0.04502,90515.0,90514.0,0.0001657]
[1763588043728,0.04502,90515.0,90514.0,0.00236373]
[1763588044730,0.04602,90515.0,90514.0,0.00236373]
[1763588046931,0.04602,90515.0,90514.0,0.0001657]
[1763588047319,0.04502,90495.0,90494.0,0.3608]
[1763588047629,0.49128,90505.0,90501.0,0.1106207]
[1763588047823,0.04502,90503.0,90502.0,0.00219803]
[1763588048134,0.04502,90512.0,90511.0,0.1106078]
[1763588048426,0.15302,90512.0,90511.0,0.00219803]
[1763588049133,0.001,90515.0,90514.0,0.04318]
[1763588049332,0.0001657,90521.0,90520.0,0.04318]
[1763588049532,0.0001657,90521.0,90520.0,0.15597583]
[1763588051026,0.0461857,90521.0,90520.0,0.04537803]
[1763588051238,0.0461857,90521.0,90520.0,0.00219803]
[1763588052434,0.0461857,90521.0,90500.0,0.3608]
[1763588052435,0.04502,90503.0,90500.0,0.3608]
[1763588052636,0.04502,90503.0,90502.0,0.00236373]
[1763588052843,0.15302,90503.0,90502.0,0.00236373]
[1763588053034,0.3608,90515.0,90502.0,0.04554373]
[1763588053232,0.108,90516.0,90514.0,0.04318]
[1763588053538,0.15302,90516.0,90515.0,0.00219803]
[1763588054137,0.02248,90516.0,90515.0,0.02362803]
[1763588054341,0.0001657,90521.0,90515.0,0.04537803]
[1763588054529,0.0001657,90521.0,90520.0,0.04318]
[1763588054730,0.0001657,90521.0,90520.0,0.04537803]
[1763588055034,0.108,90536.0,90522.0,0.1105945]
[1763588055241,0.108,90536.0,90535.0,0.11277753]
[1763588055550,0.15302,90536.0,90535.0,0.11277753]
[1763588055746,0.15302,90536.0,90535.0,0.00219803]
[1763588056449,0.04502,90527.0,90526.0,0.0001657]
[1763588056635,0.04502,90527.0,90526.0,0.00236373]
[1763588057247,0.04502,90527.0,90526.0,0.0001657]
[1763588057442,0.04502,90520.0,90519.0,0.3608]
[1763588057750,0.04502,90520.0,90519.0,0.36299803]
[1763588058835,0.02248,90520.0,90519.0,0.38442803]
[1763588059040,0.001,90527.0,90526.0,0.1537705]
[1763588059247,0.108,90527.0,90526.0,0.15596853]
[1763588059846,0.15302,90527.0,90526.0,0.00219803]
[1763588060246,0.15402,90527.0,90526.0,0.00219803]
[1763588060441,0.109,90527.0,90526.0,0.04537803]
[1763588061739,0.001,90527.0,90526.0,0.04537803]
[1763588061939,0.001,90527.0,90526.0,0.07420807]
[1763588062138,0.001,90527.0,90526.0,0.04537803]
[1763588063049,0.04602,90527.0,90526.0,0.02362803]
[1763588064049,0.001,90527.0,90526.0,0.04537803]
[1763588065341,0.04588,90527.0,90526.0,0.00219803]
[1763588065746,0.001,90527.0,90526.0,0.15764853]
[1763588065958,0.02338,90527.0,90526.0,0.15764853]
[1763588066255,0.04578,90527.0,90526.0,0.13433853]
[1763588066952,0.04578,90527.0,90526.0,0.11278853]
[1763588067455,0.04578,90527.0,90526.0,0.00219803]
[1763588068550,0.04578,90527.0,90526.0,0.04705803]
[1763588068551,0.10896,90527.0,90526.0,0.04705803]
[1763588069151,0.001,90527.0,90526.0,0.04705803]
[1763588069358,0.04578,90527.0,90526.0,0.00219803]
[1763588070955,0.001,90527.0,90526.0,0.04705803]
[1763588071356,0.04578,90527.0,90526.0,0.00219803]
[1763588072049,0.04578,90527.0,90519.0,0.3608]
[1763588072253,0.04569,90520.0,90519.0,0.00219803]
[1763588072457,0.04569,90520.0,90510.0,0.0001657]
[1763588072458,0.04569,90511.0,90510.0,0.0001657]
[1763588072657,0.04569,90511.0,90510.0,0.00236373]
[1763588073260,0.04569,90511.0,90510.0,0.0001657]
[1763588073452,0.04569,90504.0,90503.0,0.3608]
[1763588074151,0.05660352,90504.0,90503.0,0.3608]
[1763588074458,0.01051,90506.0,90494.0,0.0001657]
[1763588074459,0.04569,90495.0,90494.0,0.0001657]
[1763588074657,0.15365,90495.0,90494.0,0.0001657]
[1763588075060,0.15365,90495.0,90494.0,0.00236373]
[1763588075355,0.02297,90498.0,90497.0,0.110625]
[1763588075558,0.02297,90498.0,90497.0,0.51769303]
[1763588075856,0.20630996,90504.0,90503.0,0.1106186]
[1763588075857,0.25199996,90504.0,90503.0,0.1106186]
[1763588076063,0.25199996,90504.0,90503.0,0.11281663]
[1763588076361,0.15365,90504.0,90503.0,0.11281663]
[1763588076562,0.04569,90504.0,90503.0,0.11281663]
[1763588076750,0.04569,90504.0,90503.0,0.00219803]
[1763588077259,0.15365,90504.0,90503.0,0.00219803]
[1763588077861,0.15365,90504.0,90503.0,0.11281663]
[1763588079469,0.15365,90504.0,90503.0,0.00219803]
[1763588080860,0.04569,90504.0,90503.0,0.00219803]
[1763588081061,0.15365,90504.0,90503.0,0.00219803]
[1763588081968,0.04569,90498.0,90497.0,0.3608]
[1763588082160,0.04569,90498.0,90497.0,0.36299803]
[1763588082765,0.04569,90498.0,90497.0,0.00219803]
[1763588083966,0.10796,90504.0,90497.0,0.00219803]
[1763588084266,0.25199996,90510.0,90509.0,0.1106112]
[1763588084471,0.15365,90510.0,90509.0,0.11280923]
[1763588084763,0.13093,90510.0,90509.0,0.04626803]
[1763588084974,0.15365,90510.0,90509.0,0.04626803]
[1763588085163,0.15365,90510.0,90509.0,0.02365803]
[1763588085363,0.10796,90510.0,90509.0,0.04626803]
[1763588085867,0.04569,90516.0,90515.0,0.1106039]
[1763588086063,0.15365,90516.0,90515.0,0.11280193]
[1763588086265,0.15365,90516.0,90515.0,0.00219803]
[1763588086458,0.15365,90516.0,90507.0,0.3608]
[1763588086662,0.04569,90508.0,90507.0,0.36299803]
[1763588087865,0.001,90516.0,90515.0,0.1546739]
[1763588088061,0.001,90516.0,90515.0,0.51767193]
[1763588088264,0.10796,90526.0,90519.0,0.168269]
[1763588088467,0.10796,90526.0,90519.0,0.17046703]
[1763588090473,0.0011657,90520.0,90519.0,0.17046703]
[1763588092074,0.0241357,90520.0,90519.0,0.05986803]
[1763588092268,0.0011657,90520.0,90519.0,0.05986803]
[1763588095168,0.20630996,90530.0,90528.0,0.146798]
[1763588095374,0.3608,90536.0,90535.0,0.04407]
[1763588095583,0.46876,90536.0,90535.0,0.04626803]
[1763588095784,0.51445,90536.0,90535.0,0.04626803]
[1763588095985,0.51445,90536.0,90535.0,0.02365803]
[1763588096880,0.04569,90527.0,90526.0,0.0216257]
[1763588097080,0.04569,90527.0,90526.0,0.00236373]
[1763588097473,0.04569,90527.0,90526.0,0.11295423]
[1763588097679,0.04569,90527.0,90526.0,0.13441423]
[1763588097878,0.04569,90527.0,90526.0,0.15702423]
[1763588098075,0.02297,90527.0,90526.0,0.15702423]
[1763588098476,0.04569,90527.0,90526.0,0.04643373]
[1763588099273,0.51445,90536.0,90535.0,0.02146]
[1763588099478,0.51445,90536.0,90535.0,0.02365803]
[1763588099688,0.51445,90536.0,90535.0,0.00219803]
[1763588099884,0.46872,90536.0,90535.0,0.04626803]
[1763588100182,0.51441,90536.0,90535.0,0.04626803]
[1763588100387,0.51441,90536.0,90528.0,0.0136]
[1763588100388,0.04569,90527.0,90526.0,0.0001657]
[1763588100573,0.04569,90527.0,90526.0,0.11295423]
[1763588101289,0.04569,90527.0,90526.0,0.13441423]
[1763588101491,0.04569,90527.0,90526.0,0.11295423]
[1763588101874,0.04569,90527.0,90526.0,0.00236373]
[1763588102490,0.40649,90527.0,90526.0,0.0001657]
[1763588102688,0.05768,90516.0,90515.0,0.3608]
[1763588102986,0.1656,90516.0,90515.0,0.3608]
[1763588103382,0.0448,90498.0,90497.0,0.3608]
[1763588103583,0.20630996,90507.0,90506.0,0.04473]
[1763588103795,0.25110996,90530.0,90529.0,0.1105866]
[1763588103983,0.15272,90530.0,90529.0,0.00219803]
[1763588104189,0.0448,90521.0,90520.0,0.0001657]
[1763588104487,0.0448,90509.0,90508.0,0.3608]
[1763588104685,0.15272,90509.0,90508.0,0.36299803]
[1763588105079,0.15272,90509.0,90508.0,0.00219803]
[1763588105787,0.15272,90509.0,90508.0,0.02449803]
[1763588106091,0.0001657,90518.0,90517.0,0.1553315]
[1763588106290,0.0001657,90518.0,90517.0,0.40772803]
[1763588106492,0.0449657,90518.0,90517.0,0.38529803]
[1763588106692,0.0001657,90518.0,90517.0,0.40772803]
[1763588107082,0.10792,90526.0,90517.0,0.40772803]
[1763588107388,0.10792,90526.0,90525.0,0.04473]
[1763588107581,0.3608,90544.0,90539.0,0.1553046]
[1763588107781,0.4056,90544.0,90543.0,0.00219803]
[1763588107981,0.0448,90536.0,90535.0,0.3608]
[1763588108194,0.0448,90536.0,90535.0,0.36299803]
[1763588109284,0.0448,90536.0,90526.0,0.3609657]
[1763588109595,0.0448,90536.0,90526.0,0.0001657]
[1763588109596,0.0448,90527.0,90526.0,0.0001657]
[1763588109798,0.15272,90527.0,90526.0,0.0001657]
[1763588110091,0.0448,90504.0,90503.0,0.3608]
[1763588110290,0.15272,90504.0,90503.0,0.36299803]
[1763588110489,0.02235,90516.0,90515.0,0.1553329]
[1763588110791,0.4056,90521.0,90520.0,0.0223]
[1763588110995,0.4056,90521.0,90511.0,0.0001657]
[1763588110996,0.02235,90512.0,90511.0,0.0001657]
[1763588111304,0.0448,90512.0,90511.0,0.00236373]
[1763588111995,0.0001657,90530.0,90520.0,0.04473]
[1763588112181,0.0001657,90530.0,90511.0,0.36316373]
[1763588112182,0.0448,90522.0,90521.0,0.00219803]
[1763588112492,0.0448,90522.0,90521.0,0.11279463]
[1763588112689,0.20647566,90530.0,90529.0,0.04473]
[1763588112887,0.0001657,90530.0,90529.0,0.04692803]
[1763588113195,0.1304357,90530.0,90529.0,0.04692803]
[1763588113395,0.1528857,90530.0,90529.0,0.00219803]
[1763588113982,0.1528857,90530.0,90511.0,0.3609657]
[1763588114183,0.1080857,90530.0,90520.0,0.04692803]
[1763588114386,0.02235,90525.0,90520.0,0.00219803]
[1763588114695,0.0448,90521.0,90520.0,0.00219803]
[1763588114888,0.0448,90512.0,90511.0,0.3609657]
[1763588115082,0.10792,90515.0,90512.0,0.1106076]
[1763588115289,0.10792,90515.0,90514.0,0.04473]
[1763588115486,0.0448,90512.0,90511.0,0.0001657]
[1763588115882,0.0448,90512.0,90511.0,0.02466373]
[1763588116082,0.0448,90512.0,90511.0,0.00236373]
[1763588116992,0.15272,90512.0,90511.0,0.02466373]
[1763588117888,0.13027,90512.0,90511.0,0.04709373]
[1763588118089,0.15272,90512.0,90511.0,0.00236373]
[1763588118488,0.15272,90512.0,90511.0,0.0001657]
[1763588118993,0.15272,90512.0,90511.0,0.00236373]
[1763588119805,0.13027,90512.0,90511.0,0.04709373]
[1763588119998,0.10792,90512.0,90511.0,0.04709373]
[1763588120190,0.15272,90512.0,90511.0,0.00236373]
[1763588120695,0.15272,90512.0,90511.0,0.04709373]
[1763588121201,0.15272,90512.0,90511.0,0.02466373]
[1763588121700,0.15272,90512.0,90511.0,0.00236373]
[1763588122196,0.15272,90512.0,90511.0,0.0001657]
[1763588122593,0.51352,90512.0,90511.0,0.0001657]
[1763588124002,0.0448,90512.0,90511.0,0.13527253]
[1763588124304,0.0448,90512.0,90511.0,0.15770253]
[1763588124305,0.10792,90512.0,90511.0,0.15770253]
[1763588124598,0.15272,90512.0,90511.0,0.00236373]
[1763588124800,0.15272,90512.0,90511.0,0.0001657]
[1763588125302,0.15272,90512.0,90511.0,0.02466373]
[1763588125495,0.10792,90512.0,90511.0,0.04709373]
[1763588125997,0.15336,90512.0,90511.0,0.02466373]
[1763588126201,0.15336,90512.0,90511.0,0.00236373]
[1763588126401,0.15336,90512.0,90511.0,0.0001657]
[1763588127903,0.15336,90512.0,90511.0,0.00236373]
[1763588128506,0.15336,90512.0,90511.0,0.04626373]
[1763588128507,0.13027,90512.0,90511.0,0.04626373]
[1763588128997,0.3608,90520.0,90519.0,0.154499]
[1763588129198,0.0001657,90530.0,90529.0,0.1544868]
[1763588129199,0.28219391,90530.0,90529.0,0.1544868]
[1763588129402,0.0001657,90530.0,90529.0,0.15668483]
[1763588129600,0.1080857,90530.0,90529.0,0.15668483]
[1763588130705,0.1080857,90530.0,90529.0,0.51748483]
[1763588131499,0.1080857,90530.0,90529.0,0.40689803]
[1763588131700,0.0011657,90530.0,90529.0,0.40689803]
[1763588132007,0.1090857,90530.0,90529.0,0.51748483]
[1763588132811,0.1529557,90530.0,90529.0,0.40689803]
[1763588133305,0.1529557,90530.0,90529.0,0.00219803]
[1763588134405,0.04387,90529.0,90524.0,0.1105921]
[1763588134597,0.04387,90525.0,90524.0,0.11279013]
[1763588135403,0.04387,90525.0,90524.0,0.00219803]
[1763588136309,0.04387,90525.0,90503.0,0.03844005]
[1763588136310,0.04387,90512.0,90506.0,0.02883004]
[1763588136510,0.10788,90512.0,90511.0,0.51743253]
[1763588136908,0.15175,90512.0,90511.0,0.36316373]
[1763588137304,0.15175,90512.0,90511.0,0.40682373]
[1763588137505,0.10788,90512.0,90511.0,0.40682373]
[1763588138013,0.15175,90512.0,90511.0,0.36316373]
[1763588138312,0.15175,90512.0,90511.0,0.40682373]
[1763588138609,0.15175,90512.0,90511.0,0.36316373]
[1763588139000,0.15175,90512.0,90468.0,0.1234304]
[1763588139001,0.04387,90499.0,90498.0,0.13945474]
[1763588139309,0.04387,90499.0,90486.0,0.36107629]
[1763588139310,0.04387,90489.0,90487.0,0.02883004]
[1763588139512,0.04387,90487.0,90486.0,0.00027629]
[1763588139813,0.15175,90487.0,90486.0,0.00247432]
[1763588140115,0.15175,90487.0,90486.0,0.00027629]
[1763588140318,0.04387,90487.0,90486.0,0.00027629]
[1763588140502,0.15175,90487.0,90486.0,0.00027629]
[1763588140705,0.15175,90487.0,90486.0,0.11091559]
[1763588141009,0.15175,90487.0,90486.0,0.15677362]
[1763588141207,0.15175,90487.0,90486.0,0.04613432]
[1763588141407,0.15175,90487.0,90486.0,0.15677362]
[1763588141606,0.15175,90487.0,90486.0,0.00247432]
[1763588141808,0.15175,90487.0,90486.0,0.00027629]
[1763588142114,0.15175,90487.0,90486.0,0.04613432]
[1763588142313,0.15175,90487.0,90486.0,0.00247432]
[1763588142815,0.15175,90487.0,90486.0,0.00027629]
[1763588144010,0.15175,90487.0,90486.0,0.00127629]
[1763588144214,0.15175,90487.0,90486.0,0.00347432]
[1763588144412,0.02214,90487.0,90486.0,0.04713432]
[1763588144713,0.40467,90490.0,90489.0,0.02104]
[1763588144908,0.51259,90490.0,90489.0,0.02323803]
[1763588145107,0.0001657,90496.0,90495.0,0.1542883]
[1763588145308,0.1519557,90496.0,90495.0,0.00219803]
[1763588145512,0.1519557,90496.0,90495.0,0.13386633]
[1763588145709,0.0440357,90496.0,90495.0,0.13386633]
[1763588145910,0.0001657,90496.0,90495.0,0.15648633]
[1763588147815,0.0001657,90496.0,90495.0,0.04585803]
[1763588148515,0.0223057,90496.0,90495.0,0.04585803]
[1763588149720,0.0440357,90496.0,90495.0,0.04585803]
[1763588150420,0.0440357,90496.0,90495.0,0.00219803]
[1763588150613,0.0440357,90496.0,90486.0,0.00027629]
[1763588150614,0.04387,90487.0,90486.0,0.00027629]
[1763588150803,0.04387,90487.0,90486.0,0.00247432]
[1763588152708,0.04387,90487.0,90486.0,0.00027629]
[1763588153707,0.01283,90493.0,90477.0,0.0001657]
[1763588153708,0.04387,90484.0,90477.0,0.0001657]
[1763588154819,0.04387,90478.0,90477.0,0.0001657]
[1763588155022,0.15179,90478.0,90477.0,0.00236373]
[1763588157026,0.15190256,90478.0,90477.0,0.00236373]
[1763588157220,0.00011256,90478.0,90477.0,0.04602373]
[1763588157522,0.10803256,90478.0,90477.0,0.04602373]
[1763588157922,0.00011256,90478.0,90477.0,0.04602373]
[1763588158813,0.0011214,90478.0,90477.0,0.04602373]
[1763588159126,0.02410566,90478.0,90477.0,0.04602373]
[1763588159423,0.00199637,90478.0,90477.0,0.04602373]
[1763588160418,0.0001657,90496.0,90495.0,0.1542883]
[1763588160717,0.1080857,90496.0,90495.0,0.15648633]
[1763588160917,0.0001657,90496.0,90495.0,0.15648633]
[1763588163222,0.10792,90504.0,90503.0,0.1560886]
[1763588163418,0.10792,90504.0,90503.0,0.51908663]
[1763588164516,0.10892,90504.0,90503.0,0.51908663]
[1763588165517,0.0001657,90513.0,90512.0,0.1560776]
[1763588165713,0.10792,90519.0,90518.0,0.1560702]
[1763588166017,0.10792,90519.0,90518.0,0.15826823]
[1763588166218,0.00027617,90526.0,90525.0,0.1560617]
[1763588166415,0.06211617,90526.0,90525.0,0.51791477]
[1763588167415,0.10848617,90526.0,90525.0,0.36299803]
[1763588167719,0.10848617,90526.0,90525.0,0.40846803]
[1763588168318,0.08565617,90526.0,90525.0,0.40846803]
[1763588168517,0.06311617,90526.0,90525.0,0.40846803]
[1763588168823,0.04664617,90526.0,90525.0,0.40846803]
[1763588169017,0.04664617,90526.0,90525.0,0.36299803]
[1763588169215,0.04537,90517.0,90516.0,0.0001657]
[1763588169525,0.04537,90517.0,90516.0,0.00236373]
[1763588169526,0.15325,90517.0,90516.0,0.00236373]
[1763588169716,0.10788,90517.0,90516.0,0.06095373]
[1763588169924,0.04537,90519.0,90518.0,0.02233]
[1763588170126,0.15325,90519.0,90518.0,0.02452803]
[1763588170427,0.10788,90519.0,90518.0,0.15826823]
[1763588171124,0.13042,90519.0,90518.0,0.15826823]
[1763588171628,0.10788,90519.0,90518.0,0.15826823]
[1763588171815,0.13042,90519.0,90518.0,0.15826823]
[1763588172016,0.15325,90519.0,90518.0,0.04766803]
[1763588172325,0.10788,90519.0,90518.0,0.04766803]
[1763588173125,0.00117627,90519.0,90518.0,0.04766803]
[1763588173428,0.16413,90525.0,90524.0,0.15417033]
[1763588173612,0.16413,90525.0,90524.0,0.51716836]
[1763588174723,0.2095,90525.0,90524.0,0.40846803]
[1763588175028,0.14766,90525.0,90524.0,0.00219803]
[1763588175723,0.10229,90525.0,90524.0,0.04766803]
[1763588175923,0.12483,90525.0,90524.0,0.04766803]
[1763588176118,0.04537,90525.0,90524.0,0.04766803]
[1763588176929,0.10815617,90526.0,90525.0,0.1560617]
[1763588177127,0.5165242,90526.0,90525.0,0.00073267]
[1763588177333,0.4711542,90526.0,90525.0,0.04620267]
[1763588177630,0.4711542,90526.0,90525.0,0.13277172]
[1763588177830,0.4711542,90526.0,90525.0,0.04620267]
[1763588178021,0.4936942,90526.0,90525.0,0.04620267]
[1763588178222,0.5165242,90526.0,90525.0,0.00073267]
[1763588180230,0.5165242,90526.0,90525.0,0.04620267]
[1763588180424,0.36429144,90526.0,90525.0,0.04620267]
[1763588180625,0.3632742,90526.0,90525.0,0.04620267]
[1763588180827,0.36454575,90526.0,90525.0,0.04620267]
[1763588181422,0.16411,90532.0,90531.0,0.1560543]
[1763588181617,0.16411,90532.0,90531.0,0.15825233]
[1763588184235,0.01112845,90548.0,90531.0,0.15825233]
[1763588184236,0.01275,90564.0,90534.0,0.1560507]
[1763588184540,0.41892,90564.0,90563.0,0.1105453]
[1763588184828,0.41892,90564.0,90563.0,0.15821333]
[1763588185429,0.3608,90564.0,90563.0,0.15821333]
[1763588185621,0.10784,90565.0,90564.0,0.04547]
[1763588185826,0.10784,90565.0,90564.0,0.04766803]
[1763588186026,0.12983,90565.0,90564.0,0.04766803]
[1763588186626,0.04314,90565.0,90564.0,0.04766803]
[1763588187023,0.04314,90565.0,90564.0,0.00219803]
[1763588187537,0.153695,90555.0,90554.0,0.0001657]
[1763588187834,0.153695,90555.0,90554.0,0.00236373]
[1763588188039,0.153695,90555.0,90554.0,0.0001657]
[1763588189026,0.1537121,90541.0,90540.0,0.4713724]
[1763588189337,0.1537121,90541.0,90540.0,0.00219803]
[1763588189836,0.1537121,90541.0,90531.0,0.3608]
[1763588189837,0.04314,90532.0,90531.0,0.3608]
[1763588190030,0.04314,90532.0,90531.0,0.36299803]
[1763588190236,0.1078,90537.0,90536.0,0.1556682]
[1763588190431,0.15094,90537.0,90536.0,0.00219803]
[1763588191533,0.15094,90537.0,90536.0,0.11277623]
[1763588192929,0.15094,90537.0,90536.0,0.00219803]
[1763588193236,0.04411,90532.0,90522.0,0.0001657]
[1763588193537,0.1078,90537.0,90522.0,0.0001657]
[1763588193538,0.04482,90523.0,90522.0,0.153871]
[1763588193732,0.15262,90537.0,90536.0,0.1105782]
[1763588193931,0.1078,90537.0,90536.0,0.15588623]
[1763588194131,0.1305,90537.0,90536.0,0.15588623]
[1763588194340,0.15262,90537.0,90536.0,0.15588623]
[1763588194941,0.15262,90537.0,90536.0,0.04530803]
[1763588196140,0.04482,90523.0,90522.0,0.153871]
[1763588196336,0.04482,90523.0,90522.0,0.15606903]
[1763588196531,0.01298,90528.0,90527.0,0.1536992]
[1763588196844,0.03568,90528.0,90527.0,0.15589723]
[1763588197144,0.0578,90528.0,90527.0,0.15589723]
[1763588197737,0.0578,90528.0,90527.0,0.13392723]
[1763588197942,0.0578,90528.0,90527.0,0.00219803]
[1763588197943,0.1656,90528.0,90527.0,0.00219803]
[1763588198241,0.1656,90528.0,90522.0,0.0001657]
[1763588198242,0.1105941,90526.0,90525.0,0.1105913]
[1763588198436,0.12078,90528.0,90522.0,0.0001657]
[1763588198437,0.04482,90523.0,90522.0,0.0001657]
[1763588198633,0.04482,90523.0,90522.0,0.00236373]
[1763588199238,0.04482,90523.0,90522.0,0.0001657]
[1763588199435,0.04482,90523.0,90510.0,0.3608]
[1763588199637,0.04482,90522.0,90521.0,0.110596]
[1763588199843,0.0227,90522.0,90521.0,0.15590403]
[1763588200245,0.04482,90522.0,90521.0,0.15590403]
[1763588200941,0.0227,90522.0,90521.0,0.15590403]
[1763588201143,0.3608,90543.0,90532.0,0.1536931]
[1763588201360,0.1078,90534.0,90532.0,0.15589113]
[1763588201643,0.01392,90540.0,90539.0,0.1536846]
[1763588201842,0.16654,90540.0,90539.0,0.15588263]
[1763588203150,0.05874,90540.0,90539.0,0.15588263]
[1763588203350,0.16654,90540.0,90539.0,0.13391263]
[1763588203847,0.16654,90540.0,90539.0,0.00219803]
[1763588204344,0.2771134,90540.0,90539.0,0.00219803]
[1763588204751,0.04482,90534.0,90533.0,0.1105817]
[1763588204951,0.04482,90534.0,90533.0,0.11277973]
[1763588205654,0.04482,90534.0,90533.0,0.13391973]
[1763588207341,0.04482,90534.0,90533.0,0.15588973]
[1763588207852,0.1078,90540.0,90539.0,0.1536846]
[1763588208042,0.0449857,90541.0,90540.0,0.04311]
[1763588208242,0.0449857,90541.0,90540.0,0.04530803]
[1763588208650,0.0228657,90541.0,90540.0,0.04530803]
[1763588208860,0.0001657,90541.0,90540.0,0.04530803]
[1763588209051,0.0001657,90541.0,90540.0,0.05496803]
[1763588209351,0.2457019,90560.0,90540.0,0.05496803]
[1763588209352,0.00012,90563.0,90562.0,0.1536565]
[1763588209649,0.3608,90565.0,90562.0,0.15585453]
[1763588209844,0.3608,90565.0,90564.0,0.04311]
[1763588210044,0.3608,90565.0,90564.0,0.04530803]
[1763588210246,0.40562,90565.0,90564.0,0.00219803]
[1763588210549,0.40562,90565.0,90564.0,0.11274213]
[1763588210751,0.40562,90565.0,90564.0,0.15585213]
[1763588211056,0.40562,90565.0,90564.0,0.13388213]
[1763588211950,0.3608,90572.0,90571.0,0.1536455]
[1763588212250,0.3608,90572.0,90571.0,0.15584353]
[1763588213148,0.3608,90572.0,90571.0,0.16084353]
[1763588213351,0.3608,90572.0,90555.0,0.0001657]
[1763588213352,0.04482,90556.0,90555.0,0.0001657]
[1763588213556,0.04482,90556.0,90555.0,0.11291873]
[1763588213748,0.04482,90556.0,90555.0,0.13405873]
[1763588214150,0.04482,90556.0,90555.0,0.15602873]
[1763588214648,0.15258,90562.0,90561.0,0.1536577]
[1763588214957,0.15258,90562.0,90561.0,0.15585573]
[1763588215152,0.15258,90562.0,90561.0,0.00219803]
[1763588215660,0.1553738,90556.0,90555.0,0.0001657]
[1763588215956,0.1553738,90556.0,90555.0,0.00236373]
[1763588215957,0.1573738,90556.0,90555.0,0.00236373]
[1763588216152,0.5181738,90556.0,90555.0,0.00236373]
[1763588216362,0.40762,90556.0,90555.0,0.02350373]
[1763588216558,0.04482,90556.0,90555.0,0.04547373]
[1763588216859,0.2651265,90562.0,90561.0,0.1536577]
[1763588217053,0.15458,90562.0,90561.0,0.15585573]
[1763588217254,0.10976,90562.0,90561.0,0.15585573]
[1763588217455,0.10776,90562.0,90561.0,0.15585573]
[1763588218854,0.15258,90562.0,90561.0,0.15585573]
[1763588219558,0.15458,90562.0,90561.0,0.15585573]
[1763588219753,0.15458,90562.0,90561.0,0.02333803]
[1763588219952,0.15458,90562.0,90561.0,0.11274573]
[1763588220352,0.10976,90562.0,90561.0,0.15585573]
[1763588220958,0.04682,90562.0,90561.0,0.11274573]